bitfinex/quotes_BTCUSD_20240908
["timestamp","ask_amount","ask_price","bid_price","bid_amount"]
[1725834828444,0.390473,55083.0,55059.0,0.290596]
[1725834828445,0.1,55083.0,55059.0,0.00363182]
[1725834828710,0.290437,55090.0,55059.0,0.00363182]
[1725834828711,0.1,55089.0,55059.0,0.00363182]
[1725834828934,0.145239,55082.0,55059.0,0.00363182]
[1725834829218,0.290439,55089.0,55078.0,0.145248]
[1725834829448,0.290355,55105.0,55060.0,0.313591]
[1725834829665,0.290457,55086.0,55061.0,0.18667309]
[1725834829888,0.290355,55105.0,55082.0,0.145237]
[1725834829889,0.4145,55094.0,55082.0,0.145237]
[1725834830141,0.55430836,55093.0,55082.0,0.145237]
[1725834830374,0.14522,55089.0,55081.0,0.145239]
[1725834830602,0.290386,55100.0,55081.0,0.145239]
[1725834830603,0.145197,55098.0,55081.0,0.04393656]
[1725834830831,0.290319,55112.0,55077.0,0.4132]
[1725834830832,0.55430836,55091.0,55082.0,0.00363019]
[1725834831056,0.6044,55115.0,55077.0,0.4132]
[1725834831057,0.290457,55086.0,55077.0,0.4132]
[1725834831508,0.197,55089.0,55069.0,0.3763]
[1725834831740,0.197,55089.0,55057.0,0.3763]
[1725834831995,0.290477,55082.0,55058.0,0.00363143]
[1725834832217,0.3796,55091.0,55058.0,0.00363143]
[1725834832218,0.3796,55091.0,55064.0,0.29057]
[1725834832437,0.3796,55091.0,55065.0,0.00363115]
[1725834832438,0.145239,55082.0,55065.0,0.00363115]
[1725834832647,0.290451,55087.0,55074.0,0.145258]
[1725834832904,0.84474436,55090.0,55075.0,0.00363098]
[1725834833131,0.3796,55091.0,55075.0,0.00363098]
[1725834833132,0.145236,55083.0,55075.0,0.00363098]
[1725834833576,0.145253,55077.0,55063.0,0.290576]
[1725834833814,0.1,55089.0,55069.0,0.290543]
[1725834833815,0.14525,55078.0,55069.0,0.290543]
[1725834834046,0.1,55089.0,55056.0,0.00164]
[1725834834488,0.1,55089.0,55056.0,0.146946]
[1725834834489,0.290524,55073.0,55056.0,0.146946]
[1725834834704,0.290491,55080.0,55056.0,0.00164]
[1725834834923,0.290558,55067.0,55056.0,0.00164]
[1725834835145,0.1,55079.0,55056.0,0.00164]
[1725834835146,0.290571,55064.0,55056.0,0.00164]
[1725834835370,0.1,55079.0,55056.0,0.00164]
[1725834835371,0.197,55070.0,55056.0,0.00164]
[1725834835597,0.1,55069.0,55057.0,0.00363219]
[1725834835824,0.145295,55061.0,55056.0,0.00164]
[1725834836051,0.1,55069.0,55056.0,0.00164]
[1725834836280,0.43591,55057.0,55056.0,0.00164]
[1725834837027,0.726517,55057.0,55056.0,0.00164]
[1725834837250,0.43591,55057.0,55056.0,0.00164]
[1725834837474,0.726517,55057.0,55056.0,0.00164]
[1725834837726,0.43591,55057.0,55056.0,0.00164]
[1725834837971,0.290597,55060.0,55056.0,0.00164]
[1725834838208,0.3796,55068.0,55056.0,0.00164]
[1725834838436,0.145303,55057.0,55056.0,0.00164]
[1725834838698,0.43591,55057.0,55056.0,0.00164]
[1725834839192,0.726517,55057.0,55056.0,0.00164]
[1725834840089,1.017124,55057.0,55056.0,0.00164]
[1725834840559,1.117124,55057.0,55056.0,0.00164]
[1725834840805,0.54032392,55057.0,55056.0,0.00164]
[1725834841293,0.54032392,55057.0,55040.0,0.3763]
[1725834841294,0.1,55057.0,55040.0,0.3763]
[1725834841590,0.2824,55056.0,55032.0,0.3944]
[1725834841788,0.2824,55056.0,55028.0,0.18274]
[1725834841789,0.145377,55029.0,55028.0,0.00164]
[1725834842016,0.436132,55029.0,55028.0,0.00164]
[1725834842236,0.290742,55032.0,54994.0,0.05300515]
[1725834842237,0.290764,55028.0,54994.0,0.05300515]
[1725834842462,0.4044,55033.0,55013.0,0.55430836]
[1725834842684,0.4044,55033.0,55022.0,0.145394]
[1725834842966,0.4044,55033.0,55014.0,0.29446852]
[1725834842967,0.145368,55033.0,55026.0,0.145384]
[1725834843190,0.1,55043.0,55011.0,0.0290849]
[1725834843191,0.1,55043.0,55027.0,0.00363387]
[1725834843410,0.290589,55061.0,55028.0,0.00363358]
[1725834843411,0.390661,55047.0,55028.0,0.00363358]
[1725834843631,0.145339,55044.0,55037.0,0.145355]
[1725834843847,0.145337,55045.0,55033.0,0.29073]
[1725834844064,0.1,55047.0,55036.0,0.290715]
[1725834844285,0.1,55047.0,55018.0,0.1]
[1725834844501,0.1,55047.0,55016.0,0.290822]
[1725834844502,0.145352,55039.0,55033.0,0.145367]
[1725834844736,0.1,55048.0,55019.0,0.0390822]
[1725834844737,0.55430836,55047.0,55019.0,0.0390822]
[1725834844957,0.145366,55034.0,55021.0,0.290794]
[1725834845180,0.1,55046.0,55017.0,0.290814]
[1725834845472,0.1,55046.0,55018.0,0.0036345]
[1725834845650,0.1,55046.0,55029.0,0.145377]
[1725834845651,0.14536,55036.0,55029.0,0.145377]
[1725834845875,0.14536,55036.0,55025.0,0.290771]
[1725834845876,0.1,55046.0,55030.0,0.00363426]
[1725834846103,0.145349,55040.0,55033.0,0.145366]
[1725834846323,0.1,55046.0,55010.0,0.5755]
[1725834846324,0.145365,55034.0,55010.0,0.5755]
[1725834846551,0.290698,55040.0,55022.0,0.290787]
[1725834846767,0.145367,55033.0,55027.0,0.145381]
[1725834846995,0.145365,55034.0,55028.0,0.145379]
[1725834847225,0.7998,55058.0,55044.0,0.145337]
[1725834847456,0.55430836,55051.0,55045.0,0.00363312]
[1725834847678,0.4099,55060.0,55046.0,0.145331]
[1725834847679,0.290614,55056.0,55046.0,0.145331]
[1725834847900,0.145315,55053.0,55047.0,0.14533]
[1725834848152,0.145307,55056.0,55049.0,0.145324]
[1725834848376,0.290582,55062.0,55037.0,0.00363264]
[1725834848600,0.145297,55060.0,55053.0,0.145313]
[1725834848823,0.1994,55065.0,55054.0,0.14531]
[1725834848824,0.145294,55061.0,55054.0,0.14531]
[1725834849050,0.489969,55065.0,55045.0,0.290667]
[1725834849051,0.1994,55065.0,55045.0,0.290667]
[1725834849269,0.145307,55056.0,55049.0,0.145323]
[1725834849514,0.1994,55065.0,55047.0,0.145329]
[1725834849734,0.145311,55055.0,55048.0,0.145327]
[1725834849962,0.145311,55055.0,55043.0,0.581357]
[1725834849963,0.145313,55054.0,55044.0,0.023]
[1725834850181,0.145314,55053.0,55047.0,0.145329]
[1725834850406,0.145312,55054.0,55048.0,0.145326]
[1725834850655,0.145312,55054.0,55045.0,0.290669]
[1725834850656,0.290603,55058.0,55045.0,0.290669]
[1725834850886,0.290603,55058.0,55044.0,0.023]
[1725834850887,0.290598,55059.0,55046.0,0.168331]
[1725834851118,0.1,55058.0,55040.0,0.290695]
[1725834851354,0.1,55058.0,55048.0,0.145326]
[1725834851593,0.14527,55070.0,55049.0,0.00363217]
[1725834851817,0.6642,55074.0,55049.0,0.00363217]
[1725834851818,0.55430836,55068.0,55051.0,0.1839]
[1725834852045,0.290524,55073.0,55064.0,0.145285]
[1725834852287,0.1934,55074.0,55052.0,0.00363184]
[1725834852288,0.55430836,55071.0,55052.0,0.00363184]
[1725834852510,0.290534,55071.0,55053.0,0.023]
[1725834852728,0.145268,55071.0,55054.0,0.00363178]
[1725834852950,0.290527,55073.0,55053.0,0.023]
[1725834852951,0.290563,55066.0,55055.0,0.023]
[1725834853218,0.145283,55065.0,55053.0,0.023]
[1725834853453,0.3873,55077.0,55055.0,0.00363202]
[1725834853681,0.55430836,55075.0,55056.0,0.023]
[1725834853905,0.55430836,55075.0,55063.0,0.290572]
[1725834854128,0.677806,55077.0,55051.0,0.1839]
[1725834854129,0.290547,55069.0,55058.0,0.1453]
[1725834854354,0.290547,55069.0,55051.0,0.1839]
[1725834854355,0.0969112,55076.0,55061.0,0.145292]
[1725834854583,0.0969112,55076.0,55059.0,0.145298]
[1725834854584,0.1,55076.0,55059.0,0.145298]
[1725834854812,0.1,55076.0,55060.0,0.00363201]
[1725834855042,0.1,55076.0,55062.0,0.145289]
[1725834855291,0.1,55076.0,55060.0,0.00363201]
[1725834855292,0.1,55076.0,55060.0,0.00363168]
[1725834855510,0.290523,55074.0,55064.0,0.145283]
[1725834855739,0.145273,55069.0,55063.0,0.145287]
[1725834855989,0.145273,55069.0,55055.0,0.290616]
[1725834855990,0.1,55073.0,55069.0,0.145271]
[1725834856210,0.2905,55078.0,55060.0,0.00363139]
[1725834856432,0.2905,55078.0,55061.0,0.313584]
[1725834856649,0.290484,55081.0,55062.0,0.00363133]
[1725834856837,0.290501,55078.0,55068.0,0.145273]
[1725834857097,0.290501,55078.0,55061.0,0.313584]
[1725834857098,0.290501,55078.0,55069.0,0.14890328]
[1725834857317,0.290409,55095.0,55070.0,0.290537]
[1725834857318,0.145247,55079.0,55070.0,0.290537]
[1725834857541,0.145247,55079.0,55061.0,0.023]
[1725834857542,0.1,55076.0,55071.0,0.00363128]
[1725834857763,0.290493,55079.0,55054.0,0.29062]
[1725834857764,0.290547,55069.0,55054.0,0.29062]
[1725834857992,0.290565,55066.0,55055.0,0.02663174]
[1725834858210,0.1,55078.0,55056.0,0.290612]
[1725834858211,0.290523,55073.0,55056.0,0.290612]
[1725834858459,0.145258,55075.0,55064.0,0.290567]
[1725834858692,0.1,55072.0,55060.0,0.290589]
[1725834858921,0.1,55072.0,55065.0,0.023]
[1725834859387,0.145282,55066.0,55060.0,0.145295]
[1725834859619,0.1,55072.0,55048.0,0.290652]
[1725834859620,0.145299,55059.0,55048.0,0.290652]
[1725834859854,0.290557,55067.0,55052.0,0.145316]
[1725834860099,0.65430836,55066.0,55043.0,0.1895]
[1725834860346,0.145318,55052.0,55045.0,0.145334]
[1725834860601,0.145318,55052.0,55035.0,0.1895]
[1725834860602,0.1913,55056.0,55044.0,0.290676]
[1725834860837,0.145322,55051.0,55040.0,0.290693]
[1725834861102,0.14532,55051.0,55045.0,0.145333]
[1725834861325,0.145323,55050.0,55044.0,0.145338]
[1725834861552,0.1913,55056.0,55035.0,0.480223]
[1725834861774,0.14533,55047.0,55039.0,0.290702]
[1725834862002,0.145319,55052.0,55043.0,0.290681]
[1725834862230,0.390621,55055.0,55043.0,0.290681]
[1725834862455,0.145317,55052.0,55046.0,0.146964]
[1725834862679,0.290624,55054.0,55046.0,0.146964]
[1725834862680,0.1,55055.0,55046.0,0.001632]
[1725834862903,0.29059,55061.0,55046.0,0.001632]
[1725834863140,0.145326,55049.0,55046.0,0.001632]
[1725834863403,0.145323,55050.0,55046.0,0.001632]
[1725834863641,0.14533,55047.0,55046.0,0.001632]
[1725834863885,0.290636,55052.0,55046.0,0.001632]
[1725834864101,0.14533,55047.0,55046.0,0.001632]
[1725834865522,0.29065,55049.0,55046.0,0.001632]
[1725834865746,0.290636,55052.0,55046.0,0.001632]
[1725834865994,0.43599,55047.0,55046.0,0.001632]
[1725834866247,0.72665,55047.0,55046.0,0.001632]
[1725834866482,0.72665,55047.0,55022.0,0.072864]
[1725834866483,0.67,55047.0,55022.0,0.072864]
[1725834866724,0.1,55046.0,55023.0,0.00363403]
[1725834866952,0.1,55046.0,55030.0,0.145374]
[1725834866953,0.290704,55039.0,55030.0,0.145374]
[1725834867178,0.2907,55040.0,55031.0,0.145372]
[1725834867179,0.145357,55037.0,55031.0,0.145372]
[1725834867637,0.57,55047.0,55031.0,0.145372]
[1725834867638,0.3801,55055.0,55033.0,0.3975]
[1725834867874,0.55430836,55054.0,55036.0,0.1934]
[1725834868101,0.55430836,55054.0,55044.0,0.145336]
[1725834868338,0.145323,55050.0,55044.0,0.145336]
[1725834868599,0.3801,55063.0,55036.0,0.1934]
[1725834868860,0.55430836,55059.0,55033.0,0.3975]
[1725834869088,0.145336,55045.0,55039.0,0.145349]
[1725834869311,0.145336,55045.0,55028.0,0.4201]
[1725834869312,0.145342,55043.0,55028.0,0.4201]
[1725834869574,0.145344,55042.0,55028.0,0.4201]
[1725834869830,0.145355,55038.0,55031.0,0.14537]
[1725834870077,0.4107,55042.0,55022.0,0.290791]
[1725834870336,0.145367,55033.0,55025.0,0.290776]
[1725834870560,0.290721,55036.0,55022.0,0.290791]
[1725834870561,0.290721,55036.0,55026.0,0.145384]
[1725834870804,0.145372,55031.0,55019.0,0.5697]
[1725834871116,0.480005,55039.0,54997.0,0.05533067]
[1725834871117,0.145383,55027.0,55021.0,0.145398]
[1725834871339,0.145383,55027.0,55012.0,0.476479]
[1725834871340,0.145376,55030.0,55023.0,0.145392]
[1725834871558,0.145374,55031.0,55024.0,0.14539]
[1725834871773,0.1,55038.0,55000.0,0.01164]
[1725834872085,0.1,55038.0,55020.0,0.290801]
[1725834872086,0.29074,55032.0,55020.0,0.290801]
[1725834872320,0.29074,55032.0,55013.0,0.00363385]
[1725834872321,0.145374,55031.0,55013.0,0.00363385]
[1725834872765,0.145374,55031.0,55024.0,0.145389]
[1725834872988,0.145375,55030.0,55025.0,0.145387]
[1725834873209,0.145375,55030.0,55006.0,0.174524]
[1725834873210,0.14538,55029.0,55023.0,0.145392]
[1725834873475,0.145373,55031.0,55024.0,0.14539]
[1725834873692,0.1,55038.0,55024.0,0.14539]
[1725834873919,0.145376,55030.0,55024.0,0.14539]
[1725834874139,0.290724,55035.0,55025.0,0.00363437]
[1725834874391,0.1,55038.0,55025.0,0.023]
[1725834874611,0.55430836,55057.0,55037.0,0.290708]
[1725834874612,0.1,55048.0,55037.0,0.290708]
[1725834874840,0.55430836,55041.0,55026.0,0.39933356]
[1725834875084,0.290684,55043.0,55027.0,0.023]
[1725834875297,0.4068,55052.0,55025.0,0.023]
[1725834875298,0.290692,55042.0,55025.0,0.023]
[1725834875510,0.145355,55038.0,55028.0,0.290759]
[1725834875730,0.145355,55038.0,55032.0,0.145369]
[1725834876397,0.145349,55040.0,55034.0,0.145364]
[1725834876628,0.145349,55040.0,55025.0,0.023]
[1725834876629,0.145352,55039.0,55033.0,0.145366]
[1725834876820,0.145348,55041.0,55034.0,0.145363]
[1725834877078,0.145352,55039.0,55034.0,0.145363]
[1725834877325,0.145354,55038.0,55032.0,0.145369]
[1725834877553,0.145354,55038.0,55030.0,0.290748]
[1725834877554,0.145354,55038.0,55033.0,0.145367]
[1725834877774,0.145356,55038.0,55030.0,0.290748]
[1725834877969,0.000817,55040.0,55026.0,0.145385]
[1725834877970,0.145372,55032.0,55026.0,0.145385]
[1725834878228,0.000817,55040.0,55024.0,0.290781]
[1725834878456,0.145377,55030.0,55013.0,0.001634]
[1725834878681,0.5959,55039.0,55020.0,0.290799]
[1725834878916,0.145385,55026.0,55021.0,0.145397]
[1725834879139,0.145383,55027.0,55022.0,0.145395]
[1725834879321,0.145387,55026.0,55019.0,0.290805]
[1725834879577,0.1,55038.0,55019.0,0.290805]
[1725834879800,0.145384,55027.0,55021.0,0.145397]
[1725834880035,0.14539,55025.0,55015.0,0.290827]
[1725834880275,0.14539,55025.0,55019.0,0.145403]
[1725834880494,0.145391,55024.0,55019.0,0.145403]
[1725834880709,0.145397,55022.0,55017.0,0.145408]
[1725834881411,0.290776,55026.0,55019.0,0.145402]
[1725834881635,0.290776,55026.0,55020.0,0.145399]
[1725834881636,0.145386,55026.0,55020.0,0.145399]
[1725834881853,0.145386,55026.0,55021.0,0.145397]
[1725834882070,0.145388,55025.0,55020.0,0.145401]
[1725834882481,0.6025,55023.0,55017.0,0.290817]
[1725834882698,0.6025,55023.0,55010.0,0.290851]
[1725834882699,0.4127,55013.0,55006.0,0.00164]
[1725834883136,0.1,55012.0,55006.0,0.00164]
[1725834883349,0.145436,55007.0,55006.0,0.00164]
[1725834883563,0.72718,55007.0,55006.0,0.00164]
[1725834884290,0.82718,55007.0,55006.0,0.00164]
[1725834884507,1.118052,55007.0,55006.0,0.00164]
[1725834884973,0.1,55007.0,55006.0,0.00164]
[1725834885191,0.4127,55013.0,55006.0,0.00164]
[1725834885408,0.290845,55012.0,55006.0,0.00164]
[1725834885632,0.4127,55013.0,55006.0,0.00164]
[1725834885849,0.145433,55008.0,55006.0,0.00164]
[1725834886060,0.145429,55010.0,55006.0,0.00164]
[1725834886303,0.145427,55011.0,55006.0,0.00164]
[1725834886727,0.145424,55012.0,55006.0,0.00164]
[1725834886936,0.290845,55012.0,55006.0,0.00164]
[1725834887159,0.1,55018.0,55006.0,0.292517]
[1725834887376,0.145416,55015.0,55007.0,0.023]
[1725834887600,0.14541,55017.0,55007.0,0.023]
[1725834887814,0.1,55016.0,55007.0,0.145435]
[1725834888058,0.1,55016.0,55010.0,0.145425]
[1725834888267,0.1,55016.0,55009.0,0.14543]
[1725834888478,0.1,55016.0,55007.0,0.145435]
[1725834888709,0.1,55016.0,55006.0,0.00164]
[1725834888710,0.29083,55015.0,55006.0,0.00164]
[1725834888989,0.145426,55011.0,55006.0,0.00164]
[1725834889223,0.145415,55015.0,55009.0,0.145429]
[1725834889659,0.1,55016.0,55006.0,0.00164]
[1725834889877,0.145427,55011.0,55006.0,0.00164]
[1725834890524,0.1,55018.0,55006.0,0.00164]
[1725834890732,0.480607,55020.0,55006.0,0.00164]
[1725834890733,0.14543,55010.0,55006.0,0.00164]
[1725834890950,0.290832,55015.0,55006.0,0.00164]
[1725834891169,0.390809,55019.0,55006.0,0.00164]
[1725834891170,0.145421,55013.0,55007.0,0.290871]
[1725834891381,0.145421,55013.0,55008.0,0.145431]
[1725834891592,0.145421,55013.0,55007.0,0.290871]
[1725834891593,0.145425,55011.0,55007.0,0.145435]
[1725834891823,0.145421,55013.0,55007.0,0.145435]
[1725834892036,0.145424,55012.0,55007.0,0.145435]
[1725834892570,0.290833,55015.0,55006.0,0.00164]
[1725834892783,0.145423,55012.0,55007.0,0.145435]
[1725834893021,0.145423,55012.0,55006.0,0.00164]
[1725834893022,0.145423,55012.0,55008.0,0.145433]
[1725834893236,0.145423,55012.0,55007.0,0.145435]
[1725834893670,0.145419,55014.0,55008.0,0.145432]
[1725834894152,0.14542,55013.0,55008.0,0.145432]
[1725834894398,0.14542,55013.0,55009.0,0.14543]
[1725834894619,0.145423,55012.0,55006.0,0.292516]
[1725834895047,0.145418,55014.0,55007.0,0.29087]
[1725834895265,0.000817,55016.0,55007.0,0.00363561]
[1725834895495,0.000817,55016.0,55013.0,0.145418]
[1725834895956,0.000817,55016.0,55014.0,0.145417]
[1725834896176,0.000817,55016.0,55012.0,0.145421]
[1725834896177,0.14623,55016.0,55012.0,0.145421]
[1725834896395,0.000817,55016.0,55010.0,0.145426]
[1725834896608,0.000817,55016.0,55008.0,0.290864]
[1725834896875,0.000817,55016.0,55006.0,0.00164]
[1725834897177,0.000817,55016.0,55015.0,0.145414]
[1725834897398,0.000817,55016.0,55006.0,0.00164]
[1725834897399,0.000817,55016.0,55006.0,0.315514]
[1725834897626,0.000817,55016.0,55014.0,0.145416]
[1725834897841,0.000817,55016.0,55010.0,0.290853]
[1725834898079,0.000817,55016.0,55014.0,0.145416]
[1725834898513,0.000817,55016.0,55013.0,0.145418]
[1725834898736,0.000817,55016.0,55014.0,0.145416]
[1725834899700,0.000817,55016.0,55012.0,0.290842]
[1725834899945,0.000817,55016.0,55015.0,0.145414]
[1725834900441,0.000817,55016.0,55013.0,0.145418]
[1725834900682,0.29084,55013.0,55006.0,0.00164]
[1725834900911,0.000817,55016.0,55006.0,0.00164]
[1725834901189,0.000817,55016.0,54987.0,0.1898]
[1725834901190,0.290864,55009.0,54987.0,0.1898]
[1725834901450,0.6049,55008.0,54995.0,0.290931]
[1725834901763,0.000817,55016.0,55015.0,0.145414]
[1725834901999,0.000817,55016.0,55015.0,1.7360714]
[1725834902252,0.19407309,55039.0,55015.0,0.4273414]
[1725834902514,0.55430836,55029.0,55016.0,0.31745787]
[1725834902769,0.000817,55040.0,55026.0,0.290767]
[1725834903044,0.000817,55040.0,55027.0,0.02663358]
[1725834903264,0.290724,55035.0,55021.0,0.290795]
[1725834903528,0.290724,55035.0,55016.0,0.123]
[1725834903529,0.290731,55034.0,55022.0,0.023]
[1725834903750,0.000817,55040.0,55015.0,0.4273414]
[1725834903751,0.145399,55021.0,55015.0,0.145413]
[1725834903986,0.331098,55022.0,55015.0,0.145414]
[1725834904252,0.145399,55021.0,55007.0,0.3766]
[1725834904496,0.145421,55013.0,55006.0,0.001634]
[1725834904737,0.145421,55013.0,55008.0,0.145432]
[1725834904974,0.290803,55020.0,55009.0,0.145429]
[1725834905229,0.55430836,55026.0,55008.0,0.145432]
[1725834905230,0.145421,55013.0,55008.0,0.145432]
[1725834905521,0.145421,55013.0,55008.0,0.145433]
[1725834905809,0.3845,55017.0,55000.0,0.00164]
[1725834905810,0.290878,55006.0,55000.0,0.00164]
[1725834906038,0.1889,55011.0,55000.0,0.00164]
[1725834906039,0.145444,55004.0,55000.0,0.00164]
[1725834906291,0.1889,55011.0,55000.0,0.00164]
[1725834906292,0.1,55010.0,55000.0,0.00164]
[1725834906519,0.1,55010.0,54997.0,0.0020523]
[1725834906520,0.145459,54998.0,54997.0,0.0020523]
[1725834907008,0.3845,54998.0,54997.0,0.0020523]
[1725834907256,0.820878,54998.0,54997.0,0.0020523]
[1725834907735,1.111797,54998.0,54997.0,0.0020523]
[1725834907962,1.111797,54998.0,54981.0,0.291006]
[1725834907963,0.290938,54995.0,54981.0,0.291006]
[1725834908197,0.290938,54995.0,54985.0,0.145492]
[1725834908198,0.145475,54992.0,54985.0,0.145492]
[1725834908453,0.145475,54992.0,54982.0,0.291]
[1725834908454,0.145473,54994.0,54983.0,0.290994]
[1725834908712,0.290926,54997.0,54986.0,0.145491]
[1725834908953,0.14547,54994.0,54983.0,0.290994]
[1725834909168,0.145478,54991.0,54983.0,0.290994]
[1725834909674,0.3845,54998.0,54973.0,0.291047]
[1725834909906,0.33665,54997.0,54981.0,0.145503]
[1725834910136,0.145495,54985.0,54979.0,0.145508]
[1725834910350,0.145497,54984.0,54977.0,0.145514]
[1725834910586,0.290985,54986.0,54977.0,0.145514]
[1725834910801,0.145506,54981.0,54975.0,0.145519]
[1725834911022,0.290976,54988.0,54972.0,0.00164]
[1725834911269,0.145511,54979.0,54973.0,0.145525]
[1725834911488,0.145511,54979.0,54972.0,0.00164]
[1725834911489,0.291023,54979.0,54972.0,0.00164]
[1725834911705,0.145525,54973.0,54972.0,0.00164]
[1725834911963,0.145519,54976.0,54972.0,0.00164]
[1725834912180,0.2873,54978.0,54972.0,0.00164]
[1725834912181,0.145521,54975.0,54972.0,0.00164]
[1725834912398,0.436576,54973.0,54972.0,0.00164]
[1725834912627,0.832676,54973.0,54972.0,0.00164]
[1725834913069,0.2873,54978.0,54972.0,0.00164]
[1725834913518,0.2873,54978.0,54972.0,0.147167]
[1725834913730,0.145516,54977.0,54972.0,0.00164]
[1725834913946,0.245519,54976.0,54972.0,0.00164]
[1725834914167,0.1,54976.0,54972.0,0.00164]
[1725834914416,0.145525,54973.0,54972.0,0.00164]
[1725834914635,0.727627,54973.0,54972.0,0.00164]
[1725834915102,1.118678,54973.0,54972.0,0.00164]
[1725834915323,0.827627,54973.0,54972.0,0.00164]
[1725834915545,0.536576,54973.0,54972.0,0.00164]
[1725834916003,0.827627,54973.0,54972.0,0.00164]
[1725834916223,0.682102,54973.0,54962.0,0.00164]
[1725834916456,0.72776,54963.0,54962.0,0.00164]
[1725834916665,1.11876,54963.0,54962.0,0.00164]
[1725834916884,1.409864,54963.0,54962.0,0.00164]
[1725834917102,0.43672,54955.0,54954.0,0.00164]
[1725834917332,0.727867,54955.0,54954.0,0.00164]
[1725834917590,0.53672,54955.0,54954.0,0.00164]
[1725834917803,0.53672,54955.0,54954.0,0.147216]
[1725834917804,0.1,54955.0,54954.0,0.147216]
[1725834918018,0.5752,54963.0,54954.0,0.00164]
[1725834918253,0.145572,54956.0,54954.0,0.00164]
[1725834918479,0.5752,54963.0,54954.0,0.00164]
[1725834918480,0.145573,54955.0,54954.0,0.00164]
[1725834918709,0.43672,54955.0,54954.0,0.00164]
[1725834918941,0.43672,54955.0,54950.0,0.00164]
[1725834918942,0.14558,54953.0,54950.0,0.00164]
[1725834919165,0.145572,54956.0,54950.0,0.00164]
[1725834919387,0.09981982,54962.0,54951.0,0.0292823]
[1725834919654,0.24537582,54962.0,54951.0,0.291166]
[1725834919868,0.09981982,54962.0,54950.0,0.00164]
[1725834920092,0.291116,54961.0,54953.0,0.145577]
[1725834920313,0.291116,54961.0,54952.0,0.14558]
[1725834920314,0.145569,54957.0,54952.0,0.14558]
[1725834920529,0.291116,54961.0,54950.0,0.00164]
[1725834920530,0.145559,54961.0,54955.0,0.145572]
[1725834920757,0.1,54960.0,54951.0,0.291167]
[1725834920992,0.1,54960.0,54950.0,0.00164]
[1725834920993,0.291119,54961.0,54950.0,0.00164]
[1725834921223,0.145572,54956.0,54950.0,0.00164]
[1725834921439,0.291132,54958.0,54950.0,0.00164]
[1725834921440,0.145577,54954.0,54950.0,0.00164]
[1725834921654,0.145579,54953.0,54950.0,0.00164]
[1725834921881,0.145571,54956.0,54950.0,0.00164]
[1725834922152,0.09981982,54962.0,54950.0,0.00164]
[1725834922382,0.24537482,54962.0,54956.0,0.145569]
[1725834922603,0.09981982,54962.0,54957.0,0.145566]
[1725834922848,0.09981982,54962.0,54950.0,0.00164]
[1725834922849,0.291052,54973.0,54950.0,0.00164]
[1725834923066,0.391059,54972.0,54951.0,0.3892]
[1725834923325,0.1868,54973.0,54953.0,0.1906]
[1725834923534,0.1868,54973.0,54966.0,0.145543]
[1725834923535,0.55430836,54972.0,54966.0,0.145543]
[1725834923754,0.291069,54970.0,54957.0,0.291133]
[1725834923973,0.477855,54973.0,54961.0,0.145556]
[1725834924234,0.477855,54973.0,54958.0,0.29113]
[1725834924235,0.1868,54973.0,54958.0,0.29113]
[1725834924452,0.14554,54968.0,54962.0,0.145554]
[1725834924728,0.291065,54971.0,54963.0,0.145551]
[1725834924933,0.1,54970.0,54959.0,0.436686]
[1725834925150,0.145548,54965.0,54957.0,0.291135]
[1725834925365,0.1,54970.0,54958.0,0.145564]
[1725834925592,0.1,54970.0,54962.0,0.291105]
[1725834925810,0.1,54970.0,54963.0,0.14555]
[1725834925811,0.14554,54968.0,54963.0,0.14555]
[1725834926070,0.1,54970.0,54964.0,0.145549]
[1725834926299,0.1868,54973.0,54965.0,0.145546]
[1725834926300,0.245531,54971.0,54965.0,0.145546]
[1725834926540,0.145531,54971.0,54965.0,0.145546]
[1725834926756,0.245534,54970.0,54963.0,0.291102]
[1725834927169,0.245534,54970.0,54965.0,0.145546]
[1725834927597,0.145536,54969.0,54965.0,0.145546]
[1725834927821,0.1,54970.0,54962.0,0.001636]
[1725834928031,0.1,54972.0,54962.0,0.001636]
[1725834928248,0.24553,54972.0,54962.0,0.001636]
[1725834928458,0.24553,54972.0,54963.0,0.291102]
[1725834928685,0.24553,54972.0,54964.0,0.145549]
[1725834928686,0.145535,54970.0,54964.0,0.145549]
[1725834928897,0.1,54969.0,54965.0,0.145546]
[1725834929102,0.245537,54969.0,54965.0,0.145546]
[1725834929321,0.1,54969.0,54964.0,0.291095]
[1725834929533,0.187618,54973.0,54962.0,0.001636]
[1725834929742,0.1,54972.0,54970.0,0.145532]
[1725834929956,0.1,54972.0,54962.0,0.001636]
[1725834930168,0.1,54972.0,54966.0,0.145543]
[1725834930404,0.1,54972.0,54968.0,0.145538]
[1725834930617,0.1,54972.0,54964.0,0.291098]
[1725834930618,0.39106,54972.0,54966.0,0.145543]
[1725834930827,0.1,54972.0,54965.0,0.291091]
[1725834931038,0.1,54972.0,54967.0,0.145539]
[1725834931244,0.1,54972.0,54968.0,0.145538]
[1725834931453,0.245529,54972.0,54968.0,0.145538]
[1725834931659,0.145531,54971.0,54966.0,0.145543]
[1725834931868,0.145531,54971.0,54962.0,0.292741]
[1725834931869,0.245534,54970.0,54969.0,0.00662431]
[1725834932073,0.245534,54970.0,54963.0,0.145552]
[1725834932074,0.1,54970.0,54963.0,0.291101]
[1725834932290,0.187618,54973.0,54972.0,0.145528]